bitfinex/quotes_ETHUSD_20250827
["timestamp","ask_amount","ask_price","bid_price","bid_amount"]
[1756268898799,0.650869,4619.0,4618.9,4.6033]
[1756268899271,0.650869,4619.0,4618.9,4.287]
[1756268899814,0.965869,4619.0,4618.9,3.744]
[1756268901420,0.650869,4619.0,4618.9,3.744]
[1756268902022,0.650869,4619.0,4618.9,4.0603]
[1756268902385,0.7,4619.4,4618.9,4.0603]
[1756268903322,2.86479521,4619.4,4618.9,4.0603]
[1756268903818,2.164835,4619.3,4618.9,4.0603]
[1756268904011,2.8647895,4619.4,4618.9,4.67982]
[1756268904521,0.7,4619.4,4618.9,4.67982]
[1756268904704,2.86478997,4619.4,4619.3,0.108]
[1756268904911,0.7,4619.4,4619.3,3.851]
[1756268905223,0.7,4619.4,4619.3,4.1673]
[1756268905637,2.8647833,4619.4,4619.3,3.851]
[1756268906291,2.8647833,4619.4,4619.3,3.85]
[1756268906808,2.16501764,4618.9,4618.8,0.021]
[1756268907119,3.63601481,4619.4,4618.8,3.763]
[1756268907322,3.32101481,4619.4,4618.8,3.871]
[1756268908008,0.650872,4619.2,4618.8,3.871]
[1756268908325,2.16496131,4619.1,4618.8,3.871]
[1756268909018,0.650872,4619.2,4618.8,3.871]
[1756268909218,0.650872,4619.2,4619.1,0.3098]
[1756268909395,0.650872,4619.2,4619.1,4.0518]
[1756268910491,2.16487703,4619.2,4619.1,4.0518]
[1756268910819,1.352836,4619.4,4619.1,4.0518]
[1756268911000,0.3106,4619.2,4618.8,0.021]
[1756268911200,0.3106,4619.2,4618.9,3.741]
[1756268911519,2.16483016,4619.3,4619.1,0.108]
[1756268911723,3.51762305,4619.4,4619.2,3.741]
[1756268911924,2.16487202,4619.3,4619.1,0.108]
[1756268912096,2.16487202,4619.3,4619.2,3.741]
[1756268912425,2.47547202,4619.3,4619.2,3.741]
[1756268912722,2.16487202,4619.3,4619.2,3.741]
[1756268913122,0.702,4619.4,4619.2,3.741]
[1756268913320,2.16483016,4619.3,4619.2,3.741]
[1756268913524,2.16483016,4619.3,4619.1,0.108]
[1756268913693,2.16483016,4619.3,4619.2,3.741]
[1756268914628,2.47543016,4619.3,4619.2,3.741]
[1756268914826,3.12628016,4619.3,4619.2,3.741]
[1756268915328,2.81568016,4619.3,4619.2,3.741]
[1756268916999,2.16487703,4619.2,4619.1,0.108]
[1756268917219,2.81568402,4619.3,4619.1,3.848]
[1756268917410,0.65085,4619.3,4619.1,4.1578]
[1756268917812,2.16487703,4619.2,4619.1,4.1578]
[1756268918731,2.81568994,4619.3,4619.1,4.1578]
[1756268918931,2.81568994,4619.3,4619.2,3.74]
[1756268920230,0.65085,4619.3,4619.2,3.74]
[1756268920437,2.81568016,4619.3,4619.2,3.74]
[1756268921312,0.65085,4619.3,4619.2,4.0498]
[1756268921825,0.702,4619.4,4619.2,4.0498]
[1756268922016,0.702,4619.4,4619.2,3.74]
[1756268922217,1.352828,4619.4,4619.2,3.74]
[1756268922736,2.47544029,4619.3,4619.1,0.108]
[1756268922935,2.47544029,4619.3,4619.2,3.738]
[1756268923744,0.961427,4619.3,4619.2,3.738]
[1756268924115,3.12625716,4619.3,4619.2,3.738]
[1756268924538,0.961427,4619.3,4619.2,3.738]
[1756268924738,0.650827,4619.3,4619.2,4.0478]
[1756268925131,0.650827,4619.3,4619.2,5.16998]
[1756268925751,0.650827,4619.3,4619.2,4.73788]
[1756268925916,0.650827,4619.3,4619.2,7.33485703]
[1756268926247,0.702,4619.4,4619.2,5.16998]
[1756268926412,0.702,4619.4,4619.3,1.16558676]
[1756268926612,0.702,4619.4,4619.3,3.33041692]
[1756268926814,0.702,4619.4,4619.3,3.64021692]
[1756268928624,0.702,4619.4,4619.3,4.32186522]
[1756268928937,0.002,4619.4,4619.3,11.03721692]
[1756268929139,0.002,4619.4,4619.3,4.88828676]
[1756268929342,0.002,4619.4,4619.3,7.48521692]
[1756268929852,0.002,4619.4,4619.3,7.48421692]
[1756268931456,0.3126,4619.4,4619.3,4.57748676]
[1756268931757,0.7585,4619.4,4619.3,3.844]
[1756268934029,0.7585,4619.4,4619.3,0.108]
[1756268934357,0.7585,4619.4,4619.3,3.843]
[1756268934859,0.7585,4619.4,4619.3,0.108]
[1756268935062,3.0644148,4619.4,4619.3,3.843]
[1756268935250,0.7585,4619.4,4619.3,3.735]
[1756268935650,3.57419529,4619.4,4619.3,3.735]
[1756268936671,3.5741553,4619.4,4619.3,3.735]
[1756268938359,0.652872,4619.4,4619.3,3.735]
[1756268938963,0.966072,4619.4,4619.3,3.735]
[1756268939344,3.5925553,4619.4,4619.3,3.735]
[1756268939972,1.427772,4619.4,4619.3,3.735]
[1756268940181,0.966072,4619.4,4619.3,3.735]
[1756268940380,1.427772,4619.4,4619.3,3.735]
[1756268940584,3.5925553,4619.4,4619.3,3.735]
[1756268941436,2.16493331,4619.1,4618.9,1.665]
[1756268941632,3.5925553,4619.4,4618.9,1.665]
[1756268941633,0.3132,4619.0,4618.9,1.665]
[1756268941859,0.002,4619.4,4618.9,5.398]
[1756268942071,0.650893,4619.0,4618.9,5.7018]
[1756268942266,0.650893,4619.0,4618.9,6.27408]
[1756268942565,0.002,4619.4,4618.9,6.27408]
[1756268942745,0.4637,4619.4,4618.9,6.27408]
[1756268942945,0.650873,4619.1,4618.9,6.27408]
[1756268943136,0.002,4619.4,4619.0,0.0216497]
[1756268943335,0.002,4619.4,4619.3,0.3038]
[1756268943584,0.002,4619.4,4619.3,4.0368]
[1756268943735,0.3152,4619.4,4619.3,3.733]
[1756268943930,2.16493924,4619.1,4618.9,1.665]
[1756268944267,0.3132,4619.0,4618.9,1.665]
[1756268944441,0.7749,4619.0,4618.9,5.398]
[1756268944973,2.93987077,4619.0,4618.9,5.398]
[1756268945272,0.7749,4619.0,4618.9,5.506]
[1756268945874,0.7749,4619.0,4618.8,0.021]
[1756268945875,2.93987077,4619.0,4618.8,0.021]
[1756268946380,0.4617,4618.9,4618.8,0.021]
[1756268946669,2.62671764,4618.9,4618.8,0.021]
[1756268946883,2.93991764,4618.9,4618.8,0.021]
[1756268947182,0.650953,4619.0,4618.8,0.021]
[1756268947375,0.650953,4619.0,4618.8,0.3248]
[1756268947541,2.81592669,4619.0,4618.8,0.021]
[1756268947740,0.650953,4619.0,4618.8,0.021]
[1756268947966,2.81593111,4619.0,4618.8,0.021]
[1756268948148,0.3132,4618.9,4618.8,0.021]
[1756268948363,0.650953,4619.0,4618.8,0.021]
[1756268948535,2.47821764,4618.9,4618.8,0.021]
[1756268948737,3.57732749,4618.9,4618.8,0.021]
[1756268948938,0.3132,4618.9,4618.8,0.021]
[1756268949137,2.47821764,4618.9,4618.8,0.021]
[1756268949341,2.93991764,4618.9,4618.8,0.021]
[1756268949973,0.7749,4618.9,4618.8,0.021]
[1756268950351,2.93991764,4618.9,4618.8,0.021]
[1756268951275,2.81592833,4619.0,4618.8,0.021]
[1756268951569,0.650953,4619.0,4618.8,0.021]
[1756268951770,0.3132,4618.9,4618.8,0.021]
[1756268952143,2.93991764,4618.9,4618.8,0.021]
[1756268953978,3.59085564,4618.9,4618.8,0.021]
[1756268955043,0.650938,4618.9,4618.8,0.021]
[1756268955469,2.81595564,4618.9,4618.8,0.021]
[1756268955772,3.12915564,4618.9,4618.8,0.021]
[1756268958087,0.650938,4618.9,4618.8,0.3248]
[1756268958767,7.72993799,4618.9,4618.8,0.3248]
[1756268958940,7.07899999,4618.9,4618.8,0.3248]
[1756268959345,7.07899999,4618.9,4618.8,0.7555]
[1756268959776,7.07899999,4618.9,4618.8,0.8635]
[1756268959973,2.16678725,4619.4,4618.8,1.53946941]
[1756268960176,2.16678725,4619.4,4619.1,0.108]
[1756268960475,2.81568916,4619.3,4619.2,3.73]
[1756268961045,2.16487703,4619.2,4619.1,0.108]
[1756268961247,2.62657703,4619.2,4619.1,3.838]
[1756268961445,2.81572289,4619.3,4619.1,3.838]
[1756268961645,2.16487703,4619.2,4619.1,3.838]
[1756268961846,2.16487703,4619.2,4619.1,4.1418]
[1756268963084,2.16487703,4619.2,4619.1,3.838]
[1756268963580,2.16487703,4619.2,4619.1,3.837]
[1756268963798,0.650859,4619.3,4619.1,4.9573]
[1756268963962,0.002,4619.4,4619.2,0.4307]
[1756268964493,0.002,4619.4,4619.1,4.5266]
[1756268964494,0.002,4619.4,4619.3,0.3038]
[1756268964695,0.002,4619.4,4619.1,3.837]
[1756268965481,2.16678921,4619.4,4619.1,3.837]
[1756268965853,0.3132,4619.2,4619.1,0.108]
[1756268966058,2.47807703,4619.2,4619.1,3.836]
[1756268966290,2.16498848,4619.0,4618.8,0.021]
[1756268966490,2.16498848,4619.0,4618.9,3.836]
[1756268966781,2.93988848,4619.0,4618.9,3.836]
[1756268966983,2.16484628,4619.3,4618.9,4.5705]
[1756268967190,2.16484628,4619.3,4618.9,5.02965]
[1756268967352,2.16488491,4619.2,4618.9,4.59895]
[1756268967559,0.4488,4619.2,4618.9,3.836]
[1756268967759,0.652857,4619.4,4618.9,3.836]
[1756268967960,2.16483264,4619.3,4618.9,3.836]
[1756268969285,0.652857,4619.4,4619.2,0.2884]
[1756268969461,0.652857,4619.4,4618.9,3.836]
[1756268969668,0.652857,4619.4,4619.0,3.727]
[1756268970068,2.16488245,4619.2,4619.0,3.727]
[1756268970791,0.002,4619.4,4619.0,3.727]
[1756268970792,2.4681239,4619.1,4619.0,3.727]
[1756268971292,0.3032,4619.1,4619.0,3.727]
[1756268971493,0.3032,4619.1,4618.9,0.108]
[1756268971789,2.4681239,4619.1,4619.0,3.727]
[1756268972404,3.1189839,4619.1,4619.0,3.727]
[1756268973271,3.5677839,4619.1,4619.0,3.727]
[1756268973592,1.40286,4619.1,4619.0,3.727]
[1756268973792,0.65086,4619.1,4619.0,4.0154]
[1756268974182,0.95406,4619.1,4619.0,3.727]
[1756268974492,0.65086,4619.1,4619.0,3.727]
[1756268974916,0.65086,4619.1,4619.0,4.0154]
[1756268975786,2.8157839,4619.1,4619.0,4.0154]
[1756268975966,2.8157839,4619.1,4619.0,3.727]
[1756268976165,3.5677839,4619.1,4619.0,3.727]
[1756268976862,2.16497077,4619.0,4618.9,3.834]
[1756268978265,2.81585477,4619.0,4618.9,3.834]
[1756268978703,0.650884,4619.0,4618.9,3.833]
[1756268979619,2.81585477,4619.0,4618.9,3.833]
[1756268979821,0.650884,4619.0,4618.9,3.833]
[1756268980317,0.650884,4619.0,4618.9,4.1214]
[1756268980499,0.650884,4619.0,4618.9,0.3964]
[1756268980681,0.650884,4619.0,4618.9,4.1214]
[1756268982515,7.72988399,4619.0,4618.9,4.5873]
[1756268982905,7.72988399,4619.0,4618.9,4.58223]
[1756268983098,7.72988399,4619.0,4618.9,5.04813]
[1756268983099,7.07899999,4619.0,4618.9,5.04813]
[1756268984644,7.07899999,4619.0,4618.9,7.21314764]
[1756268986026,7.07899999,4619.0,4618.9,7.87314764]
[1756268986390,0.002,4619.1,4619.0,2.16497077]
[1756268986689,0.002,4619.1,4619.0,1.83653524]
[1756268987001,0.3052,4619.1,4619.0,3.723]
[1756268987720,0.754,4619.1,4619.0,3.723]
[1756268987926,2.9189239,4619.1,4619.0,3.723]
[1756268988301,0.754,4619.1,4619.0,3.723]
[1756268988624,2.9189239,4619.1,4619.0,3.723]
[1756268988797,0.3052,4619.1,4618.9,0.108]
[1756268988997,0.3052,4619.1,4619.0,3.723]
[1756268988998,2.4701239,4619.1,4619.0,3.723]
[1756268989539,2.9189239,4619.1,4619.0,3.723]
[1756268989841,0.002,4619.1,4619.0,3.723]
[1756268990315,0.002,4619.1,4619.0,4.4773]
[1756268990628,0.002,4619.1,4619.0,4.0114]
[1756268990795,0.002,4619.1,4619.0,3.723]
[1756268991214,0.002,4619.1,4618.9,0.108]
[1756268991416,0.002,4619.1,4619.0,3.722]
[1756268991792,0.3052,4619.1,4619.0,3.722]
[1756268992814,0.002,4619.1,4619.0,3.722]
[1756268993422,0.002,4619.1,4619.0,3.721]
[1756268993807,0.002,4619.1,4619.0,4.0094]
[1756268994843,0.3052,4619.1,4619.0,3.721]
[1756268995928,0.002,4619.1,4619.0,3.721]
[1756268996303,0.754,4619.1,4619.0,3.721]
[1756268996719,2.9189239,4619.1,4619.0,3.721]
[1756268996921,2.16497077,4619.0,4618.9,0.108]
[1756268997132,2.61377077,4619.0,4618.9,3.829]
[1756268997333,7.38559999,4619.0,4618.9,0.108]
[1756268997537,7.82139999,4619.0,4618.9,3.829]
[1756268998414,9.98637076,4619.0,4618.9,3.829]
[1756268999938,9.55057076,4619.0,4618.9,3.829]
[1756269000135,9.98637076,4619.0,4618.9,3.829]
[1756269000716,7.82139999,4619.0,4618.9,3.829]
[1756269000909,7.38559999,4619.0,4618.9,3.828]
[1756269001106,7.07899999,4619.0,4618.9,3.828]
[1756269001632,9.24397076,4619.0,4618.9,3.828]
[1756269001835,9.24397076,4619.0,4618.9,4.1164]
[1756269001836,7.07899999,4619.0,4618.9,4.1164]
[1756269002018,7.07899999,4619.0,4618.9,0.3964]
[1756269002213,9.98637076,4619.0,4618.9,3.828]
[1756269002937,9.98637076,4619.0,4618.8,0.021]
[1756269002938,2.16501764,4618.9,4618.8,0.021]
[1756269003138,11.43050117,4618.9,4618.8,0.021]
[1756269003340,12.15655787,4618.9,4618.8,0.021]
[1756269006133,5.16501764,4618.9,4618.8,0.021]
[1756269006849,3.0,4618.9,4618.8,0.3094]
[1756269007013,3.0,4618.9,4618.8,0.4174]
[1756269007215,5.90741764,4618.9,4618.8,0.021]
[1756269007745,15.76755787,4618.9,4618.8,0.021]
[1756269009367,2.16520515,4618.5,4618.4,0.001]
[1756269009662,8.89954845,4618.5,4618.4,0.001]
[1756269009867,9.62560515,4618.5,4618.4,0.001]
[1756269011352,2.16548647,4617.9,4617.8,1e-08]
[1756269011658,15.0246267,4617.9,4617.8,1e-08]
[1756269011958,15.7670267,4617.9,4617.8,1e-08]
[1756269013452,2.16595551,4616.9,4616.8,0.02]
[1756269013750,15.02509574,4616.9,4616.8,0.02]
[1756269014056,15.76749574,4616.9,4616.8,0.02]
[1756269014357,16.41880274,4616.9,4616.8,0.02]
[1756269014733,16.41880274,4616.9,4615.5,2.1045]
[1756269014734,2.16630874,4616.2,4615.5,2.1045]
[1756269015057,2.16630874,4616.2,4616.1,0.2884]
[1756269015357,2.16625349,4616.3,4616.1,0.2884]
[1756269015724,2.16628395,4616.2,4616.1,0.2884]
[1756269016235,0.3066,4616.2,4615.5,1.655]
[1756269016436,0.3066,4616.2,4615.5,1.605]
[1756269016884,0.3066,4616.2,4614.8,0.02]
[1756269016885,2.1666284,4615.5,4614.8,0.02]
[1756269017067,2.1666284,4615.5,4614.8,0.4695]
[1756269017268,3.718,4615.8,4615.4,0.2884]
[1756269017487,2.16657502,4615.6,4615.4,0.2884]
[1756269017640,2.1666125,4615.5,4615.4,0.2884]
[1756269018361,2.16655841,4615.7,4615.4,0.2884]
[1756269018557,2.16651377,4615.8,4615.4,0.2884]
[1756269018993,0.651405,4616.1,4615.7,0.108]
[1756269019189,0.108,4616.4,4616.0,0.2884]
[1756269019483,0.4495,4616.3,4616.1,0.4495]
[1756269019682,3.4495,4616.3,4616.1,0.4495]
[1756269019883,0.4495,4616.3,4616.2,0.2884]
[1756269020778,0.108,4616.6,4616.2,0.2884]
[1756269020965,0.4495,4616.6,4616.3,0.5575]
[1756269021281,0.4495,4616.6,4616.5,0.2884]
[1756269021442,0.02,4616.8,4616.7,2.16604934]
[1756269021638,0.02,4616.8,4616.7,3.22432294]
[1756269021842,0.02,4616.8,4616.7,4.62222294]
[1756269022042,0.02,4616.8,4616.7,4.73022294]
[1756269022463,0.02,4617.8,4617.7,2.82558026]
[1756269022774,0.02,4617.8,4617.7,8.49213829]
[1756269022980,0.02,4617.8,4617.7,5.62003829]
[1756269023166,0.02,4617.8,4617.7,9.33703829]
[1756269023548,0.02,4617.8,4617.7,5.62003829]
[1756269023747,0.02,4617.8,4617.7,9.33703829]
[1756269025282,0.02,4617.8,4617.7,5.62003829]
[1756269025475,0.02,4617.8,4617.7,9.33703829]
[1756269025877,0.02,4617.8,4617.7,5.62003829]
[1756269026055,0.02,4617.8,4617.7,9.33703829]
[1756269026259,0.02,4617.8,4617.7,5.62003829]
[1756269026587,0.02,4617.8,4617.7,9.33603829]
[1756269028689,0.002,4619.0,4618.7,2.16511139]
[1756269028888,0.002,4619.0,4618.7,8.2277625]
[1756269029092,0.002,4619.0,4618.7,9.08051139]
[1756269030674,0.002,4619.0,4618.7,12.08051139]
[1756269030875,0.002,4619.0,4618.9,2.16501764]
[1756269031076,0.002,4619.4,4619.0,5.82497077]
[1756269031077,1e-08,4619.1,4619.0,5.82497077]
[1756269031290,1e-08,4619.1,4619.0,11.90337077]
[1756269032377,1e-08,4619.1,4619.0,11.99011477]
[1756269032705,1e-08,4619.5,4619.4,5.8247833]
[1756269032902,0.4282,4621.7,4619.5,5.82473644]
[1756269033202,0.4282,4621.7,4619.8,6.24339586]
[1756269033517,0.4282,4621.4,4619.8,9.95739586]
[1756269033878,0.4282,4621.4,4619.8,10.41299586]
[1756269034224,0.4482,4621.8,4620.2,2.82440846]
[1756269034424,1e-08,4620.4,4620.3,5.82436162]
[1756269034569,1e-08,4620.4,4620.3,8.06320304]
[1756269034772,1e-08,4620.4,4620.3,8.17120304]
[1756269035022,1e-08,4620.8,4620.7,2.82417425]
[1756269035275,1e-08,4620.8,4620.7,11.22481599]
[1756269035486,1e-08,4620.8,4620.7,13.46204078]
[1756269035701,1e-08,4621.3,4621.2,2.8239401]
[1756269035901,1e-08,4621.3,4621.2,14.8695795]
[1756269036105,1e-08,4621.3,4621.2,17.31769956]
[1756269036983,1e-08,4621.3,4621.2,17.40440156]
[1756269037368,0.002,4622.5,4621.2,17.40440156]
[1756269037575,0.002,4622.5,4622.4,2.93137833]
[1756269037882,0.002,4622.5,4622.4,8.32901211]
[1756269038090,0.002,4622.5,4622.4,9.6674249]
[1756269038291,0.002,4622.5,4622.4,5.6446249]
[1756269038490,0.002,4622.5,4622.4,9.3566249]
[1756269039708,0.3122,4622.5,4622.4,2.82124657]
[1756269040020,0.702,4622.5,4622.4,8.61817833]
[1756269040707,0.702,4622.5,4622.4,8.61717833]
[1756269040906,0.002,4622.5,4622.4,8.61717833]
[1756269041076,0.002,4622.5,4622.4,9.69524148]
[1756269041276,0.3122,4622.5,4622.4,5.01344148]
[1756269041482,0.002,4622.5,4622.4,8.50917833]
[1756269045111,0.702,4622.5,4622.4,8.50917833]
[1756269045483,0.002,4622.5,4622.4,8.50917833]
[1756269045678,0.002,4622.5,4622.4,8.19837833]
[1756269046015,0.002,4622.5,4622.4,9.23456241]
[1756269046999,0.002,4622.5,4622.4,9.54536241]
[1756269050225,0.7404,4622.5,4622.4,5.52356241]
[1756269050389,0.7404,4622.5,4622.4,8.19637833]
[1756269051015,0.002,4622.5,4622.4,8.19637833]
[1756269051201,0.702,4622.5,4622.4,8.19637833]
[1756269051521,0.002,4622.5,4622.4,8.30437833]
[1756269052323,0.002,4622.5,4622.4,9.3511618]
[1756269053292,0.002,4622.5,4622.4,9.6619618]
[1756269053906,0.002,4622.5,4622.4,9.3511618]
[1756269054440,0.3122,4622.5,4622.4,9.3511618]
[1756269054737,0.002,4622.5,4622.4,9.3511618]
[1756269054946,0.002,4622.5,4622.4,10.1175618]
[1756269055731,0.02,4622.8,4622.7,2.82323793]
[1756269055919,0.02,4622.8,4622.7,6.6608703]
[1756269056134,0.02,4622.8,4622.7,7.40563793]
[1756269056826,0.002,4622.9,4622.7,7.40563793]
[1756269056827,0.002,4623.4,4623.2,0.66]
[1756269057026,0.002,4623.4,4623.1,2.16302922]
[1756269057027,0.002,4623.4,4623.3,8.56388968]
[1756269057238,0.002,4623.4,4623.3,4.94226011]
[1756269057442,0.002,4623.4,4623.3,8.95356011]
[1756269058138,0.002,4623.4,4623.3,9.40836011]
[1756269059944,0.002,4623.4,4623.3,8.95356011]
[1756269060145,0.002,4623.4,4623.3,5.24556011]
[1756269060527,0.002,4623.4,4623.3,8.95256011]
[1756269060734,0.002,4623.4,4623.3,9.40736011]
[1756269060930,0.02,4623.8,4623.4,5.82291041]
[1756269061109,0.002,4624.2,4624.1,2.82258298]
[1756269061315,0.002,4624.2,4624.1,6.8535088]
[1756269061509,0.002,4624.2,4624.1,3.23388298]
[1756269061715,0.2919,4624.2,4624.1,6.63658298]
[1756269061934,0.002,4624.2,4624.1,7.51650681]
[1756269062645,0.2919,4624.2,4624.1,7.51650681]
[1756269062825,0.002,4624.2,4624.1,7.51650681]
[1756269064948,0.2919,4624.2,4624.1,7.51650681]
[1756269065145,0.2919,4624.2,4624.1,3.81050681]
[1756269065442,0.002,4624.2,4624.1,7.51650681]
[1756269065641,0.2919,4624.2,4624.1,7.51650681]
[1756269066030,0.7653,4624.2,4624.1,7.51650681]
[1756269066233,0.7653,4624.2,4624.1,3.814]
[1756269066442,0.7653,4624.2,4624.1,5.97658298]
[1756269067053,1.4653,4624.2,4624.1,0.108]
[1756269067219,0.2919,4624.2,4624.1,5.97558298]
[1756269067419,0.7653,4624.2,4624.1,3.813]
[1756269067621,0.7653,4624.2,4624.1,5.97558298]
[1756269068768,0.7653,4624.2,4624.1,2.27058298]
[1756269068960,0.7653,4624.2,4624.1,5.97558298]
[1756269069167,0.7653,4624.2,4624.1,2.27058298]
[1756269069469,0.7653,4624.2,4624.1,5.97558298]
[1756269071280,0.7653,4624.2,4624.1,3.813]
[1756269071431,0.7653,4624.2,4624.1,3.812]
[1756269071627,0.7653,4624.2,4624.1,0.108]
[1756269071841,1.4653,4624.2,4624.1,3.812]
[1756269072066,4.20685704,4624.2,4624.1,3.812]
[1756269072456,2.04432082,4624.2,4624.1,3.812]
[1756269073770,4.20685704,4624.2,4624.1,3.812]
[1756269074271,7.20685704,4624.2,4624.1,3.812]
[1756269074482,7.20685704,4624.2,4624.1,0.108]
[1756269074837,2.16262975,4624.0,4623.9,3.704]
[1756269075389,5.16267652,4623.9,4623.8,0.001]
[1756269075536,12.24167651,4623.9,4623.8,0.001]
[1756269075740,13.69199733,4623.9,4623.8,0.001]
[1756269077962,27.13916384,4623.9,4623.8,0.001]
[1756269078192,20.72016385,4623.9,4623.8,1e-08]
[1756269079258,7.27299734,4623.9,4623.8,1e-08]
[1756269079955,2.16291041,4623.4,4623.3,1e-08]
[1756269080172,8.88325371,4623.4,4623.3,1e-08]
[1756269080514,9.63021041,4623.4,4623.3,1e-08]
[1756269080810,10.21221041,4623.4,4623.3,1e-08]
[1756269081118,10.32021041,4623.4,4623.3,1e-08]
[1756269081300,10.89923123,4623.4,4623.3,1e-08]
[1756269082289,7.19523123,4623.4,4623.3,1e-08]
[1756269082491,2.92621041,4623.4,4623.3,1e-08]
[1756269082693,0.8713,4623.4,4623.3,1e-08]
[1756269082895,2.45281041,4623.4,4623.3,1e-08]
[1756269083374,3.108,4623.7,4623.3,0.30330001]
[1756269083375,2.1627767,4623.7,4623.3,0.30330001]
[1756269083597,2.16277117,4623.7,4623.3,0.41130001]
[1756269083799,2.1627626,4623.8,4623.3,4.00730001]
[1756269084008,2.16277007,4623.7,4623.6,0.108]
[1756269084375,2.16272961,4623.8,4623.6,0.4113]
[1756269084575,0.702,4624.2,4623.6,0.4113]
[1756269085013,0.702,4624.2,4623.9,0.108]
[1756269085214,2.45252975,4624.0,4623.9,0.108]
[1756269085419,2.16285735,4623.6,4623.3,1e-08]
[1756269085725,2.16199227,4623.6,4623.5,0.108]
[1756269085910,5.92529227,4623.6,4623.5,0.108]
[1756269086425,5.45189227,4623.6,4623.5,0.108]
[1756269087123,3.0,4623.6,4623.5,0.4113]
[1756269087729,3.0,4623.6,4623.5,0.8482]
[1756269087937,3.0,4623.6,4623.5,0.108]
[1756269088240,3.0,4623.6,4623.5,3.811]
[1756269088437,3.0,4623.6,4623.5,4.1177]
[1756269088738,0.702,4624.2,4623.5,4.1177]
[1756269088739,0.702,4624.2,4623.5,4.96637]
[1756269088904,0.702,4624.2,4623.6,0.45852816]
[1756269089114,0.702,4624.2,4624.1,0.4147]
[1756269089439,0.702,4624.2,4624.1,4.1177]
[1756269089810,0.702,4624.2,4624.1,4.5546]
[1756269090010,0.702,4624.2,4624.1,5.01222263]
[1756269090241,1.0047,4624.2,4624.1,0.108]
[1756269090410,0.702,4624.2,4624.1,0.108]
[1756269090611,0.702,4624.2,4624.1,0.4147]
[1756269091232,0.702,4624.2,4624.1,0.108]
[1756269091613,0.702,4624.2,4624.1,0.4147]
[1756269092033,0.702,4624.2,4624.1,4.1177]
[1756269092234,0.702,4624.2,4624.1,3.811]
[1756269092235,1.0047,4624.2,4624.1,3.811]
[1756269092544,0.702,4624.2,4624.1,4.1177]
[1756269094543,0.702,4624.2,4624.1,4.5546]
[1756269095511,0.702,4624.2,4624.1,4.1177]
[1756269096928,0.702,4624.2,4623.7,1.663]
[1756269096929,1.4694,4624.2,4623.7,1.663]
[1756269097137,2.16262975,4624.0,4623.9,3.702]
[1756269097830,0.3027,4624.0,4623.9,3.702]
[1756269098034,0.702,4624.2,4623.9,4.1167]
[1756269098647,2.16258854,4624.1,4623.9,3.81]
[1756269099016,0.702,4624.2,4623.9,3.81]
[1756269101030,0.702,4624.2,4624.1,0.3067]
[1756269101336,0.702,4624.2,4624.1,3.23728298]
[1756269101531,0.702,4624.2,4624.1,3.67418298]
[1756269102166,0.002,4624.7,4624.6,2.82234917]
[1756269102451,0.002,4624.7,4624.6,8.80891818]
[1756269102679,0.022,4625.8,4625.7,2.82183496]
[1756269102830,0.022,4625.8,4625.7,7.52]
[1756269103024,0.022,4625.8,4625.7,2.0777]
[1756269103249,0.022,4625.8,4625.7,1.771]
[1756269103456,0.022,4625.8,4625.7,0.108]
[1756269103457,0.7894,4625.8,4625.7,0.108]
[1756269103661,2.95118823,4625.8,4625.7,0.108]
[1756269103857,2.16192742,4625.6,4625.4,1.485]
[1756269104172,0.022,4625.8,4625.5,1.593]
[1756269104373,0.3027,4625.6,4625.5,1.593]
[1756269106164,0.022,4625.8,4625.5,1.593]
[1756269106334,0.022,4625.8,4625.5,1.8997]
[1756269106942,0.022,4625.8,4625.6,1.68461881]
[1756269107156,0.022,4625.8,4625.7,2.26983496]
[1756269107341,0.022,4625.8,4625.7,3.67343496]
[1756269107748,0.022,4625.8,4625.7,3.23653496]
[1756269107935,0.022,4625.8,4625.7,0.4147]
[1756269108165,0.022,4625.8,4625.7,6.28053496]
[1756269108468,0.022,4625.8,4625.7,6.71743496]
[1756269108678,0.022,4625.8,4625.7,7.37743496]
[1756269111667,0.022,4625.8,4625.7,7.37843496]
[1756269113164,0.022,4625.8,4625.7,3.67343496]
[1756269113383,0.022,4625.8,4625.7,8.66386685]
[1756269115235,0.022,4625.8,4625.7,11.66386685]
[1756269116226,0.022,4625.8,4625.7,7.96186685]
[1756269116521,0.022,4625.8,4625.7,11.66286685]
[1756269116720,0.002,4626.3,4625.7,11.66286685]
[1756269116721,0.002,4626.3,4626.2,2.82160131]
[1756269116920,0.002,4626.3,4626.2,9.96563131]
[1756269117123,0.002,4626.3,4626.2,10.70923131]
[1756269117338,0.002,4626.3,4626.2,10.81723131]
[1756269118026,0.022,4626.8,4626.7,2.82136771]
[1756269118239,0.022,4626.8,4626.7,8.57450448]
[1756269118434,0.022,4626.8,4626.7,9.31400448]
[1756269119023,0.022,4626.8,4626.7,8.87540448]
[1756269119411,0.022,4626.8,4626.7,12.31500448]
[1756269120392,0.022,4626.8,4626.7,11.87740448]
[1756269121443,0.022,4626.8,4626.7,11.57750448]
[1756269121736,0.022,4626.8,4626.7,11.87740448]
[1756269122405,0.022,4626.8,4626.7,8.17340448]
[1756269122642,0.022,4626.8,4626.7,12.31500448]